Cogmind - Beta 14 @@@ ROGUE MODE // 2024.11.07 @ 19:43:30 Player: Steeredaxe Result: Destroyed by G-50 Soldier with Heavy Laser Performance ------------- Evolutions (2) 1000 Regions Visited (4) 800 Robots Destroyed (40) 200 Value Destroyed (1175) 1175 Prototype IDs (1) 20 Alien Tech Used (0) 0 Bonus (0) 0 TOTAL SCORE: 3195 Bonus ------- None Cogmind --------- Core Integrity 0/550 Matter 197/300 Energy 160/160 System Corruption 0% Temperature Cool (22) Movement Walking (260) Ox2 Location -8/Materials Parts ------- > --- POWER (1) -------- Light Nuclear Core > --- PROPULSION (4) --- Carbon-fiber Leg > --- UTILITY (4) ------ Large Storage Unit Visual Processing Unit Terrain Scanner Core Shielding > --- WEAPON (2) ------- Enhanced Autogun Gauss Rifle > --- INVENTORY (15) --- Signal Interpreter Targeting Computer Power Shielding Hacking Suite Particle Cannon Light Assault Rifle Light Assault Rifle High-powered Shotgun Peak State ------------ > --- POWER ------------ Light Ion Engine > --- PROPULSION ------- Armored Wheel Armored Wheel Armored Wheel Armored Wheel > --- UTILITY ---------- Large Storage Unit Large Matter Pod Structural Scanner Power Shielding > --- WEAPON ----------- Enhanced Autogun Great Maul > --- INVENTORY -------- Light Treads Improved Heat Sink Small Storage Unit Visual Processing Unit Signal Interpreter Terrain Scanner Targeting Computer Core Shielding Hacking Suite Trap Extractor Light Assault Rifle Light Assault Rifle Light Assault Rifle High-powered Shotgun [Rating: 22] Favorites ----------- Power Ion Engine Engine Ion Engine Power Core Light Nuclear Core Propulsion Light Treads Treads Light Treads Leg Carbon-fiber Leg Wheel Armored Wheel Utility Structural Scanner Device Structural Scanner Storage Large Storage Unit Processor Visual Processing Unit Protection Power Shielding Weapon Assault Rifle Energy Gun EM Pulse Gun Energy Cannon Particle Cannon Ballistic Gun Assault Rifle Impact Weapon Great Maul Build | -11 -10 -9 -9 -8 ------- Run | Yrd Mat Mat Min Mat Slots Evolved 4 | . . 2 . 2 Power . | . . . . . Propulsion 2 | . . . . 2 Utility 2 | . . 2 . . Weapon . | . . . . . Parts Attached 45 | 6 5 11 . 23 Power 8 | 1 1 4 . 2 Engine 5 | 1 1 2 . 1 Core 3 | . . 2 . 1 Reactor . | . . . . . Propulsion 12 | 2 . 2 . 8 Treads 6 | 2 . 2 . 2 Leg 1 | . . . . 1 Wheel 5 | . . . . 5 Hover . | . . . . . Flight . | . . . . . Utility 9 | 1 2 2 . 4 Device 3 | . 1 . . 2 Storage 3 | 1 1 1 . . Processor 1 | . . . . 1 Hackware . | . . . . . Protection 2 | . . 1 . 1 Artifact . | . . . . . Weapon 16 | 2 2 3 . 9 Energy Gun 2 | . . 1 . 1 Energy Cannon 1 | . . . . 1 Ballistic Gun 11 | 2 2 2 . 5 Ballistic Cannon . | . . . . . Launcher . | . . . . . Special Weapon . | . . . . . Impact Weapon 2 | . . . . 2 Slashing Weapon . | . . . . . Piercing Weapon . | . . . . . Special Melee Weapon . | . . . . . Unidentified Prototypes 1 | . . . . 1 Parts Lost 16 | . . 1 . 15 Power 2 | . . . . 2 Propulsion 6 | . . . . 6 Utility 3 | . . . . 3 Weapon 5 | . . 1 . 4 Highest Loss Streak 4 | . . 1 . 4 To Critical Strikes . | . . . . . Average Slot Usage (%) 94 | . 97 98 100 84 Engine 9 | . 14 3 11 4 Core 2 | . . 7 . 2 Treads 19 | . 28 22 22 1 Wheel 5 | . . . . 23 Device 10 | . 11 11 11 8 Storage 17 | . 14 21 22 16 Protection 5 | . . 10 11 9 Energy Gun 2 | . . 4 11 3 Ballistic Gun 18 | . 28 16 11 6 Impact Weapon 1 | . . . . 5 Peak Build Rating 22 | 6 8 14 12 22 Average Rating 10 | 4 7 12 12 17 On Entrance 7 | . 6 8 12 12 Naked Turns . | . . . . . Heaviest Build 38 | 13 30 33 31 38 Greatest Support 48 | 40 40 43 43 48 Greatest Overweight (x) 9 | 1 . . . 9 Average Overweight (x) . | . . . . . Largest Inventory Capacity 15 | 8 15 15 15 15 Average Capacity 13 | 7 12 15 15 15 Most Carried 15 | 5 12 15 15 15 Average Carried 10 | 3 8 12 15 13 Final Capacity 15 | 8 15 15 15 15 Final Carried 15 | 4 12 15 15 8 Class Distribution -------------------- 100% | Mutant Dominant Class ---------------- Mutant | -10/Materials Mutant | -9/Materials Mutant | -9/Mines Mutant | -8/Materials Resources | -11 -10 -9 -9 -8 ----------- Run | Yrd Mat Mat Min Mat Matter Collected 875 | 164 227 162 . 322 Remotely . | . . . . . Salvage Created 1250 | . 227 269 . 754 Parts 76 | . 26 27 . 23 Haulers Intercepted . | . . . . . Recyclers Shooed 1 | . . . . 1 Parts Field Recycled . | . . . . . Retrieved Matter . | . . . . . Parts Self-Destructed . | . . . . . Prevented . | . . . . . Kills | -11 -10 -9 -9 -8 ------- Run | Yrd Mat Mat Min Mat Combat Hostiles Destroyed 36 | . 10 11 . 15 Melee 7 | . 2 . . 5 Guns 22 | . 8 11 . 3 Classes Destroyed 6 | . 3 . . 3 Watcher 4 | . 1 1 . 2 Swarmer 14 | . 6 8 . . Grunt 15 | . 4 3 . 8 Brawler 1 | . . . . 1 Sentry 5 | . . . . 5 Hunter 1 | . . . . 1 Best Kill Streak 5 | . 5 5 . 4 Combat Bots Only 5 | . 5 5 . 3 Max Kills in Single Turn 2 | . 1 2 . 1 Gunslinging 1 | . . 1 . . Exploded . | . . . . . Melee 1 | . 1 . . 1 Uniques/NPCs Destroyed . | . . . . . Combat | -11 -10 -9 -9 -8 -------- Run | Yrd Mat Mat Min Mat Hostile Shots Fired 336 | . 76 64 . 196 Missed 84 | . 22 15 . 47 Damage Taken 3270 | . 522 406 . 2342 Core 691 | . 81 51 . 559 Absorbed by Shields . | . . . . . Redirected to Shielding 61 | . . 9 . 52 Core Remaining (%) 84 | 100 67 . 87 . Volleys Fired 107 | . 45 20 . 42 Largest 2 | . 2 2 . 2 Hottest 93 | . 40 60 . 93 Shots Fired 186 | . 90 38 . 58 Gun 180 | . 90 38 . 52 Cannon 6 | . . . . 6 Launcher . | . . . . . Special . | . . . . . Kinetic 162 | . 90 30 . 42 Thermal 6 | . . . . 6 Explosive . | . . . . . Electromagnetic 18 | . . 8 . 10 Robot Hit Streak 14 | . 9 11 . 14 Robot Miss Streak 7 | . 7 3 . 5 Penetration Max . | . . . . . Secondary Targets 5 | . . 4 . 1 Max Gunslinging Chain 1 | . . 1 . 1 Shots Hit Robots 146 | . 48 26 . 72 Core Hits 50 | . 19 16 . 15 Critical Kills 1 | . . . . 1 Critical Parts Destroyed 10 | . . . . 10 Critical Strikes 12 | . . . . 12 Destroy 1 | . . . . 1 Smash 11 | . . . . 11 Melee Attacks 40 | . . . . 40 Impact 40 | . . . . 40 Slashing . | . . . . . Piercing . | . . . . . Sneak Attacks . | . . . . . Combat Hostiles . | . . . . . Follow-up Attacks . | . . . . . Damage Inflicted 2987 | . 608 298 . 2081 Guns 1519 | . 587 297 . 635 Cannons 83 | . . . . 83 Explosions 34 | . . . . 34 Melee 1329 | . . . . 1329 Ramming 22 | . 21 1 . . Kinetic 1309 | . 587 201 . 521 Thermal 117 | . . . . 117 Explosive . | . . . . . Electromagnetic 210 | . . 96 . 114 Impact 1329 | . . . . 1329 Slashing . | . . . . . Piercing . | . . . . . Highest Corruption . | . . . . . Average Corruption . | . . . . . Corruption Purged . | . . . . . Corruption Blocked . | . . . . . Overload Shots . | . . . . . Overflow Damage 477 | . . . . 477 Projectiles . | . . . . . Explosions . | . . . . . Melee 477 | . . . . 477 Knockbacks 7 | . . . . 7 Impact 7 | . . . . 7 Kinetic . | . . . . . Secondary . | . . . . . Self-Inflicted Damage . | . . . . . Shots . | . . . . . Rammed 10 | . 9 1 . . Targets Rammed 12 | . 11 1 . . Kicked . | . . . . . Crushed 2 | . 2 . . . Highest Temperature 81 | . 12 18 . 81 Average Temperature 14 | . 5 11 . 17 Received Heat Transfer 1179 | . 144 36 . 999 Siege Activations . | . . . . . Robots Corrupted 8 | . . . . 8 Combat Hostiles 7 | . . . . 7 Parts Fried 10 | . . . . 10 Impact Corruptions 14 | . . . . 14 Robots Melted . | . . . . . Combat Hostiles . | . . . . . Parts Melted 3 | . . . . 3 Heat Transferred 198 | . . . . 198 Parts Sabotaged . | . . . . . Parts Stolen . | . . . . . Parts Stripped . | . . . . . Power Chain Reactions 1 | . . . . 1 Alert | -11 -10 -9 -9 -8 ------- Run | Yrd Mat Mat Min Mat Peak Influence 376 | . 245 324 51 376 Initial 51 | . . 39 51 19 Average 114 | . 76 183 51 169 Maximum Alert Level 1 | . 1 1 . 1 Low Security (%) 79 | 100 92 68 100 52 Level 1 20 | . 7 31 . 47 Level 2 . | . . . . . Level 3 . | . . . . . Level 4 . | . . . . . Level 5 . | . . . . . High Security . | . . . . . Max Security . | . . . . . Squads Dispatched 7 | . . 1 . 6 Investigation 1 | . . . . 1 Extermination . | . . . . . Reinforcement 3 | . . 1 . 2 Assault . | . . . . . Garrison 3 | . . . . 3 Intercept . | . . . . . Searches Triggered . | . . . . . Construction Impeded . | . . . . . Haulers Reinforced . | . . . . . Active Scanning Responses . | . . . . . Cargo Convoy Interrupts . | . . . . . Stealth | -11 -10 -9 -9 -8 --------- Run | Yrd Mat Mat Min Mat Distress Signals 5 | . 1 . . 4 Communications Jammed . | . . . . . Distress Signals . | . . . . . Times Spotted 61 | . 17 15 . 29 Peak Tracking Total 7 | . 3 6 . 7 Tactical Retreats 6 | . 1 . . 5 Traps | -11 -10 -9 -9 -8 ------- Run | Yrd Mat Mat Min Mat Traps Triggered . | . . . . . Indirectly . | . . . . . Trap Hack Attempts . | . . . . . Triggered . | . . . . . Disarmed . | . . . . . Reprogrammed . | . . . . . Reused . | . . . . . Traps Extracted . | . . . . . Installed . | . . . . . Triggered 2 | . . . . 2 Machines | -11 -10 -9 -9 -8 ---------- Run | Yrd Mat Mat Min Mat Machines Disabled 1 | . 1 . . . Max in Single Turn 1 | . 1 . . . Machines Repaired . | . . . . . Machines Dismantled . | . . . . . Machines Sabotaged . | . . . . . Overloaded Fab Kills . | . . . . . Hacking | -11 -10 -9 -9 -8 --------- Run | Yrd Mat Mat Min Mat Machines Accessed 2 | . 1 1 . . Terminals 2 | . 1 1 . . Fabricators . | . . . . . Repair Stations . | . . . . . Recycling Units . | . . . . . Scanalyzers . | . . . . . Garrison Access . | . . . . . Total Hacks 2 | . 1 1 . . Successful 1 | . 1 . . . Failed 1 | . . 1 . . Catastrophic . | . . . . . Database Lockouts . | . . . . . Manual . | . . . . . Terminals 2 | . 1 1 . . Fabricators . | . . . . . Repair Stations . | . . . . . Recycling Units . | . . . . . Scanalyzers . | . . . . . Garrison Access . | . . . . . Terminal Hacks 1 | . 1 . . . Record 1 | . 1 . . . Fabricator Hacks . | . . . . . Repair Station Hacks . | . . . . . Recycling Unit Hacks . | . . . . . Scanalyzer . | . . . . . Garrison Access Hacks . | . . . . . Unauthorized Hacks . | . . . . . Terminals . | . . . . . Fabricators . | . . . . . Repair Stations . | . . . . . Recycling Units . | . . . . . Scanalyzers . | . . . . . Garrison Access . | . . . . . Data Cores Recovered . | . . . . . Used . | . . . . . Hacking Detections 1 | . 1 . . . Full Trace Events . | . . . . . Feedback Events . | . . . . . Feedback Blocked . | . . . . . Robot Schematics Acquired . | . . . . . Robots Built . | . . . . . Authchips . | . . . . . Time . | . . . . . Total Robot Build Rating . | . . . . . Part Schematics Acquired . | . . . . . Parts Built . | . . . . . Authchips . | . . . . . Time . | . . . . . Total Part Build Rating . | . . . . . Parts Repaired . | . . . . . Time . | . . . . . Parts Recycled . | . . . . . Recycled Matter . | . . . . . Retrieved Matter . | . . . . . Retrieved Components . | . . . . . Parts Scanalyzed . | . . . . . Part Schematics Acquired . | . . . . . Parts Damaged . | . . . . . Bothacking | -11 -10 -9 -9 -8 ------------ Run | Yrd Mat Mat Min Mat Used RIF Installer . | . . . . . Robots Hacked . | . . . . . Non-combat . | . . . . . Combat . | . . . . . Robot Hacks Applied . | . . . . . Relay Couplers Released . | . . . . . Fabnet Peak Effective % . | . . . . . Robots Rewired . | . . . . . Allies Hacked . | . . . . . Hacks Repelled . | . . . . . Allies | -11 -10 -9 -9 -8 -------- Run | Yrd Mat Mat Min Mat Total Allies . | . . . . . Largest Group . | . . . . . Highest-Rated Group . | . . . . . Highest-Rated Ally . | . . . . . Total Orders . | . . . . . Ally Attacks . | . . . . . Total Damage . | . . . . . Kills . | . . . . . Allies Corrupted . | . . . . . Allies Melted . | . . . . . Intel | -11 -10 -9 -9 -8 ------- Run | Yrd Mat Mat Min Mat Robot Analysis Total . | . . . . . Derelict Logs Recovered . | . . . . . Drone Launches . | . . . . . Drone Recoveries . | . . . . . Exploration | -11 -10 -9 -9 -8 ------------- Run | Yrd Mat Mat Min Mat Turns Passed 2226 | 121 904 462 210 529 Spaces Moved 1126 | 78 442 234 132 240 Core 24 | 20 . . . 4 Treads 879 | 58 442 234 132 13 Legs 6 | . . . . 6 Wheels 217 | . . . . 217 Hover . | . . . . . Flight . | . . . . . Fastest Speed 50 | 50 160 160 160 90 Average Speed 147 | 135 160 160 160 109 Slowest Speed 500 | 160 160 160 160 500 Overloaded Moves . | . . . . . Propulsion Burnouts . | . . . . . Robots Hopped . | . . . . . Cave-ins Triggered . | . . . . . Exploration Rate (%) 28 | 5 52 22 37 25 Regions Visited 4 Branch Regions 1 Pre-discovered Areas . | . . . . . Known Exits Taken . | . . . . . Unknown Exits Taken 4 | 1 1 1 1 . Scrap Searched . | . . . . . Spaces Dug . | . . . . . Terrain Destroyed 4 | . . . . 4 Melee . | . . . . . Projectile . | . . . . . AOE 4 | . . . . 4 Terrain Rammed . | . . . . . Walls Destroyed . | . . . . . Machines Disabled . | . . . . . Actions | -11 -10 -9 -9 -8 --------- Run | Yrd Mat Mat Min Mat Total 1439 | 93 547 287 131 381 Wait 41 | . 28 . . 13 Move 1122 | 77 441 233 131 240 Hop . | . . . . . Pick Up 52 | 10 13 14 . 15 Fast Attach . | . . . . . Attach 25 | 6 1 3 . 15 Detach . | . . . . . Swap 20 | . 4 8 . 8 Drop 20 | . 4 8 . 8 Fire 107 | . 45 20 . 42 Melee 40 | . . . . 40 Ram . | . . . . . Kick . | . . . . . Crush 12 | . 11 1 . . Escape Stasis . | . . . . . Rewire . | . . . . . Trap . | . . . . . Miscellaneous . | . . . . . Route ------- -11/Scrapyard -10/Materials -9/Materials -9/Mines -8/Materials History --------- Turn | Location | Event 18 | -11/Scrapyard | Discovered new exit (range 15) 122 | -11/Scrapyard | Entered Materials 300 | -10/Materials | Build established: Mutant 807 | -10/Materials | Discovered new exit (range 12) 1026 | -10/Materials | Entered another Materials area 1026 | -9/Materials | Evolved 2 slots: Utility x2 1439 | -9/Materials | Discovered new exit (range 15) 1488 | -9/Materials | Entered Mines 1615 | -9/Mines | Discovered new exit (range 5) 1698 | -9/Mines | Entered Materials 1698 | -8/Materials | Evolved 2 slots: Propulsion x2 1889 | -8/Materials | Garrison activated, responded to threat 2017 | -8/Materials | Core integrity fell below 50% 2059 | -8/Materials | Lost 3 parts (1p2n) 2102 | -8/Materials | Lost 4 parts (2n1u1w) 2154 | -8/Materials | Core integrity fell below 20% 2191 | -8/Materials | Lost 4 parts (2n2u) 2227 | -8/Materials | Destroyed by G-50 Soldier with Heavy Laser Last Messages --------------- Imp. Treads destroyed. K-01 Serf collects debris. R-06 Scavenger collects Corrupted Aluminum Leg. G-47 Trooper suffers critical hit (Smash). Destroyed Aluminum Leg. Destroyed Imp. Heat Sink. G-47 Trooper system corrupted by crushing effect. G-47 Trooper knocked back. R-06 Scavenger collects Targeting Computer. W-25 Informer sends out distress signal. K-01 Serf collects debris. R-06 Scavenger collects Trap Extractor. K-01 Serf collects debris. Acquired 40 matter. Acquired 4 matter. K-01 Serf collects debris. Great Maul destroyed. Y-45 Defender destroyed. Slug penetrates G-50 Soldier. Map ----- +----------------------------------------------------+ | ?????????????????????????????????????????????????? | | ?????????????????????????????????????????????????? | | ?????????????????????????????????????????????????? | | ??????????????? ?????????????????????????????????? | | ?????????????## # ?????????????????????????????? | | ??????######### # ?????????????????????????????? | | ??????######### + ?????????????????????????????? | | ??????## ##?????????????????????????????? | | ?????? # ##?????????????????????????????? | | ?????? #" ##?????????????????????????????? | | ?????? #T ##??????????#??????????????????? | | ?????? #" ! =[ ####??????? ???????????????????? | | ?????? # = ##?????????????????????????????? | | ?????? " ##?????? ???????#??????????????? | | ?????? # ##?????????????????????????????? | | # ##?????????###?????????????????? | | ######## ########## #######???????????? | | ########### ########???????????? | | == ???????????? | | = % ???????????? | | ####### == %% ???????????? | | ## # ###+######;###########???????????????? | | ????? # ### "" ## # ???? ??????????? | | ????? # ### ""S # % # ?????????????????? | | ????? # ### "" ## # ?????????????????? | | ????? # ### !## @ # ?????????????????? | | ?? # ### !! ## # ?????????????????? | | ??##+## ### !! ## # ?????????????????? | | ?? ### !! ## # "????????????????? | | #### ########## [ ! ###????????????????? | | #### ########## %* ##????????????????? | | #### ##??????########g#####???????????????? | | #### """ ##??????######## ####???#????????????? | | #### """ ##???########### #######?????????????? | | #### """ ##???###########/#######?????????????? | | #### """ ##???## # ##?????????????? | | #### ####?## # ##?????????????? | | #### ####?## "" # ##?????????????? | | % ##### S"" #= ##?????????????? | | ##### "" ! + =##?????????????? | | %+ [=[# ##?????????????? | | ############+##########+## ! ##?????????????? | | # ####### + !%%/ ##?????????????? | | ???????## """ ######=## ##?????????????? | | ???????## = """ ###### ######/#####?????????????? | | ???????## """ ##?? # #### ###?????????????? | | ???????## ##?? # ##???? ???????????????? | | ???????## "" ##?? + ???? ??????????????? | | ???????## "T ##?? # ##???? ? ???????????? | | ???????## "" ##?? # ##???? #####???????????? | +----------------------------------------------------+ Best States ------------- Heat Dissipation 45 Energy Generation 14 Energy Capacity 250 Matter Stores 391 Matter Capacity 450 Sight Range 18 Terrain Scan Range 14 Terrain Scan Density 10 Core Shielding 20 Power Shielding 33 Evasion (%) 50 Recoil Reduction 2 Item Schematics ----------------- None Robot Schematics ------------------ None Fabricated ------------ Nothing Alien Tech Used ----------------- None Achievements -------------- Power Corrupts Challenges ------------ None Game ------ Seed RelayArmoredPenetrator Manual? 0 Play Time 00:30:13 Cumulative 3.5 hours Start 2024.11.07 @ 19:13:18 End 2024.11.07 @ 19:43:30 Sessions 1 Manual Loads 0 Difficulty Rogue Special Mode None Game No. 7 Rogue 6 Adventurer 1 Explorer 0 Win Type - Total 0 Types 0/0/0/0/0/0/0/0/0 Lore% 0 Gallery% 6 Achievement% 5 Wizard Run 0 Options --------- Layout 1 ASCII 0 Keyboard 0 Movement Arrows Keybinds 0 Fullscreen 1 Font 24/Smallcaps Map View 50x35 Zoom Use 0% Tactical HUD 0 Map Filters NONE Filters NONE Steam 1 RUN: 049cacb1-999f-4149-93ca-692485885581